fUST/lending_fUST_20260417
["ID","MTS","AMOUNT","RATE_DAILY","PERIOD"]
[420639278,1776394251442,-305.73261817,8.767e-05,2]
[420639279,1776394251451,-4887.41,8.767e-05,2]
[420639280,1776394251461,-218.5865786,8.767e-05,2]
[420639281,1776394251470,-429.78250903,8.767e-05,2]
[420639282,1776394251479,-500.0,8.767e-05,2]
[420639283,1776394251489,-500.0,8.767e-05,2]
[420639284,1776394251498,-500.0,8.767e-05,2]
[420639285,1776394251507,-500.0,8.767e-05,2]
[420639286,1776394251517,-1406.54,8.767e-05,2]
[420639287,1776394251526,-635.69,8.767e-05,2]
[420639288,1776394251535,-1186.24,8.767e-05,2]
[420639289,1776394251545,-500.0,8.767e-05,2]
[420639290,1776394251554,-500.0,8.767e-05,2]
[420639291,1776394251564,-222.42899754,8.767e-05,2]
[420639292,1776394251573,-500.0,8.767e-05,2]
[420639293,1776394251582,-500.0,8.767e-05,2]
[420639294,1776394251592,-500.0,8.767e-05,2]
[420639295,1776394251601,-641.81014189,8.767e-05,2]
[420639296,1776394251611,-500.0,8.767e-05,2]
[420639297,1776394251620,-500.0,8.767e-05,2]
[420639298,1776394251630,-545.24,8.767e-05,2]
[420639299,1776394251639,-3682.29,8.767e-05,2]
[420639300,1776394251648,-1399.77,8.767e-05,2]
[420639301,1776394251657,-4179.88,8.767e-05,2]
[420639302,1776394251667,-2445.11,8.767e-05,2]
[420639303,1776394251676,-500.0,8.767e-05,2]
[420639304,1776394251685,-500.0,8.767e-05,2]
[420639305,1776394251695,-723.56,8.767e-05,2]
[420639306,1776394251704,-500.0,8.767e-05,2]
[420639307,1776394251713,-500.0,8.767e-05,2]
[420639308,1776394251723,-626.43,8.767e-05,2]
[420639309,1776394251732,-888.71,8.767e-05,2]
[420639310,1776394251741,-500.0,8.767e-05,2]
[420639311,1776394251751,-3063.73,8.767e-05,2]
[420639312,1776394251760,-797.06,8.767e-05,2]
[420639313,1776394251770,-780.91,8.767e-05,2]
[420639314,1776394251779,-501.32510507,8.767e-05,2]
[420639315,1776394251789,-1719.51,8.767e-05,2]
[420639316,1776394251798,-500.0,8.767e-05,2]
[420639317,1776394251808,-500.0,8.767e-05,2]
[420639318,1776394251817,-500.0,8.767e-05,2]
[420639319,1776394251827,-500.0,8.767e-05,2]
[420639320,1776394251836,-500.0,8.767e-05,2]
[420639321,1776394251846,-500.0,8.767e-05,2]
[420639322,1776394251855,-500.44708401,8.767e-05,2]
[420639323,1776394251864,-214.57440794,8.767e-05,2]
[420639324,1776394251874,-500.0,8.767e-05,2]
[420639325,1776394251883,-500.0,8.767e-05,2]
[420639326,1776394251893,-1384.22,8.767e-05,2]
[420639327,1776394251905,-807.43,8.767e-05,2]
[420639328,1776394251915,-700.81,8.767e-05,2]
[420639329,1776394251925,-500.0,8.767e-05,2]
[420639330,1776394251934,-531.78289307,8.767e-05,2]
[420639331,1776394251943,-316.12330285,8.767e-05,2]
[420639332,1776394251953,-2676.54,8.767e-05,2]
[420639333,1776394251962,-500.0,8.767e-05,2]
[420639334,1776394251971,-2670.78,8.767e-05,2]
[420639335,1776394251981,-1986.85,8.767e-05,2]
[420639336,1776394251990,-598.01,8.767e-05,2]
[420639337,1776394252000,-500.0,8.767e-05,2]
[420639338,1776394252009,-693.33,8.767e-05,2]
[420639339,1776394252019,-500.0,8.767e-05,2]
[420639340,1776394252028,-500.0,8.767e-05,2]
[420639341,1776394252038,-1545.23,8.767e-05,2]
[420639342,1776394252049,-3353.58,8.767e-05,2]
[420639343,1776394252061,-1898.42,8.767e-05,2]
[420639344,1776394252070,-658.34,8.767e-05,2]
[420639345,1776394252080,-500.0,8.767e-05,2]
[420639346,1776394252089,-444.29800072,8.767e-05,2]
[420639347,1776394252099,-203.85250732,8.767e-05,2]
[420639348,1776394252108,-3579.48,8.767e-05,2]
[420639349,1776394252119,-500.0,8.767e-05,2]
[420639350,1776394252128,-19056.46,8.767e-05,2]
[420639351,1776394252138,-500.0,8.767e-05,2]
[420639352,1776394252148,-500.0,8.767e-05,2]
[420639353,1776394252157,-5144.65,8.767e-05,2]
[420639354,1776394252167,-1223.8,8.767e-05,2]
[420639355,1776394252177,-1488.46,8.767e-05,2]
[420639356,1776394252187,-517.9289967,8.767e-05,2]
[420639357,1776394252197,-3630.44,8.767e-05,2]
[420639358,1776394252206,-500.0,8.767e-05,2]
[420639359,1776394252216,-4732.69,8.767e-05,2]
[420639360,1776394252225,-510.39524691,8.767e-05,2]
[420639361,1776394252235,-206.98422297,8.767e-05,2]
[420639362,1776394252244,-500.0,8.767e-05,2]
[420639363,1776394252253,-500.0,8.767e-05,2]
[420639364,1776394252263,-13339.73,8.767e-05,2]
[420639365,1776394252272,-500.0,8.767e-05,2]
[420639366,1776394252282,-202.91441456,8.767e-05,2]
[420639367,1776394252291,-603.43414358,8.767e-05,2]
[420639368,1776394252301,-424.60441643,8.767e-05,2]
[420639369,1776394252310,-500.0,8.767e-05,2]
[420639370,1776394252320,-500.0,8.767e-05,2]
[420639371,1776394252330,-769.51,8.767e-05,2]
[420639372,1776394252339,-4966.75,8.767e-05,2]
[420639373,1776394252349,-500.0,8.767e-05,2]
[420639374,1776394252359,-680.55,8.767e-05,2]
[420639375,1776394252368,-593.24159503,8.767e-05,2]
[420639376,1776394252378,-500.0,8.767e-05,2]
[420639377,1776394252387,-500.0,8.767e-05,2]
[420639378,1776394252397,-500.0,8.767e-05,2]
[420639379,1776394252407,-504.49210394,8.767e-05,2]
[420639380,1776394252416,-2205.59,8.767e-05,2]
[420639381,1776394252425,-500.0,8.767e-05,2]
[420639382,1776394252436,-835.19,8.767e-05,2]
[420639383,1776394252446,-500.0,8.767e-05,2]
[420639384,1776394252455,-595.36,8.767e-05,2]
[420639385,1776394252465,-500.0,8.767e-05,2]
[420639386,1776394252474,-537.47948338,8.767e-05,2]
[420639387,1776394252483,-4932.92,8.767e-05,2]
[420639388,1776394252493,-512.64160576,8.767e-05,2]
[420639389,1776394252503,-505.0336295,8.767e-05,2]
[420639390,1776394252512,-3593.59,8.767e-05,2]
[420639391,1776394252521,-999.49,8.767e-05,2]
[420639392,1776394252531,-500.0,8.767e-05,2]
[420639393,1776394252540,-319.90000026,8.767e-05,2]
[420639394,1776394252550,-1553.19,8.767e-05,2]
[420639395,1776394252559,-500.0,8.767e-05,2]
[420639396,1776394252569,-1079.57,8.767e-05,2]
[420639397,1776394252578,-561.12,8.767e-05,2]
[420639398,1776394252588,-1977.31,8.767e-05,2]
[420639399,1776394252598,-248.57616948,8.767e-05,2]
[420639400,1776394252607,-500.0,8.767e-05,2]
[420639401,1776394252616,-500.0,8.767e-05,2]
[420639402,1776394252626,-500.36705973,8.825e-05,2]
[420639403,1776394252636,-500.0,8.825e-05,2]
[420639404,1776394252645,-500.0,8.825e-05,2]
[420639405,1776394252654,-500.0,8.863e-05,2]
[420639406,1776394252664,-500.0,8.872e-05,2]
[420639407,1776394252673,-500.0,8.872e-05,2]
[420639408,1776394252683,-506.56468968,8.887e-05,2]
[420639409,1776394252692,-3012.65450415,8.989e-05,2]
[420639410,1776394252701,-226000.0,9e-05,2]
[420639411,1776394252710,-160.0,9e-05,2]
[420639412,1776394252720,-160.0,9e-05,2]
[420639413,1776394252729,-160.0,9e-05,2]
[420639414,1776394252742,-162.1127286,9e-05,2]
[420639415,1776394252752,-5016.74592153,9e-05,2]
[420639416,1776394252761,-1790.09012067,9e-05,2]
[420639417,1776394252770,-10683.71061189,9.002e-05,2]
[420639418,1776394252780,-155.0,9.04e-05,2]
[420639419,1776394252789,-208.57189905,9.041e-05,2]
[420639420,1776394252799,-1214.6536,9.041e-05,2]
[420639421,1776394252808,-500.0,9.041e-05,2]
[420639422,1776394252818,-508.33134784,9.041e-05,2]
[420639423,1776394252827,-575.22534843,9.041e-05,2]
[420639424,1776394252837,-869.98,9.041e-05,2]
[420639425,1776394252846,-500.0,9.041e-05,2]
[420639426,1776394252856,-501.58376124,9.041e-05,2]
[420639427,1776394252866,-419.04421014,9.041e-05,2]
[420639428,1776394252875,-291.88015503,9.041e-05,2]
[420639429,1776394252885,-500.0,9.041e-05,2]
[420639430,1776394252895,-500.0,9.041e-05,2]
[420639431,1776394252904,-500.0,9.041e-05,2]
[420639432,1776394252914,-989.92,9.041e-05,2]
[420639433,1776394252923,-920.74,9.041e-05,2]
[420639434,1776394252932,-528.21,9.041e-05,2]
[420639435,1776394252942,-544.17,9.041e-05,2]
[420639436,1776394252952,-500.0,9.041e-05,2]
[420639437,1776394252962,-197.78465509,9.041e-05,2]
[420639438,1776394252972,-500.0,9.041e-05,2]
[420639439,1776394252982,-352.24092859,9.041e-05,2]
[420639440,1776394253318,-147.75907141,9.041e-05,2]
[420639441,1776394253328,-203.57,9.041e-05,2]
[420639442,1776394253337,-657.23,9.041e-05,2]
[420639443,1776394253347,-500.0,9.041e-05,2]
[420639444,1776394253356,-500.0,9.041e-05,2]
[420639445,1776394253366,-500.0,9.041e-05,2]
[420639446,1776394253375,-374.78540752,9.041e-05,2]
[420639447,1776394253384,-500.0,9.041e-05,2]
[420639448,1776394253394,-500.0,9.041e-05,2]
[420639449,1776394253403,-500.0,9.041e-05,2]
[420639450,1776394253412,-500.0,9.041e-05,2]
[420639451,1776394253421,-500.0,9.041e-05,2]
[420639452,1776394253431,-500.0,9.041e-05,2]
[420639453,1776394253442,-500.0,9.041e-05,2]
[420639454,1776394253451,-500.0,9.041e-05,2]
[420639455,1776394253461,-704.23,9.041e-05,2]
[420639456,1776394253471,-1869.56,9.041e-05,2]
[420639457,1776394253481,-500.0,9.041e-05,2]
[420639458,1776394253491,-500.0,9.041e-05,2]
[420639459,1776394253500,-1282.42,9.041e-05,2]
[420639460,1776394253510,-500.0,9.041e-05,2]
[420639461,1776394253520,-500.0,9.041e-05,2]
[420639462,1776394253535,-500.0,9.041e-05,2]
[420639463,1776394253545,-577.38,9.041e-05,2]
[420639464,1776394253554,-547.0855102,9.041e-05,2]
[420639465,1776394253563,-500.0,9.041e-05,2]
[420639466,1776394253573,-638.966003,9.041e-05,2]
[420639467,1776394253582,-1408.9,9.041e-05,2]
[420639468,1776394253591,-247.02281072,9.041e-05,2]
[420639469,1776394253601,-500.0,9.041e-05,2]
[420639470,1776394253611,-500.0,9.041e-05,2]
[420639471,1776394253621,-500.0,9.041e-05,2]
[420639472,1776394253779,-500.0,9.041e-05,2]
[420639473,1776394253788,-500.0,9.041e-05,2]
[420639474,1776394253798,-500.0,9.041e-05,2]
[420639475,1776394253807,-500.0,9.041e-05,2]
[420639476,1776394253816,-1584.11483781,9.041e-05,2]
[420639477,1776394254347,-2515.83,8.219e-05,2]
[420639478,1776394254357,-500.0,8.219e-05,2]
[420639479,1776394254367,-500.0,8.219e-05,2]
[420639480,1776394254377,-500.0,8.219e-05,2]
[420639481,1776394254387,-2515.83,8.493e-05,2]
[420639482,1776394254396,-311.16404303,8.493e-05,2]
[420639483,1776394254580,-188.83595697,8.493e-05,2]
[420639484,1776394254590,-432.46284569,8.493e-05,2]
[420639485,1776394254599,-565.82,8.493e-05,2]
[420639486,1776394254608,-477.2358317,8.767e-05,2]
[420639487,1776394254624,-2038.5941683,8.767e-05,2]
[420639488,1776394254633,-395.89165997,8.767e-05,2]
[420639489,1776394254643,-46.47516219,9.041e-05,2]
[420639490,1776394254653,-500.0,9.041e-05,2]
[420639491,1776394254664,-500.0,9.041e-05,2]
[420639492,1776394254674,-500.0,9.041e-05,2]
[420639493,1776394254684,-500.0,9.041e-05,2]
[420639494,1776394254694,-958.67,9.041e-05,2]
[420639495,1776394254704,-599.28298737,9.041e-05,2]
[420639496,1776394254715,-2086.12,9.041e-05,2]
[420639497,1776394254725,-500.0,9.041e-05,2]
[420639498,1776394254735,-500.0,9.041e-05,2]
[420639499,1776394254745,-500.0,9.041e-05,2]
[420639500,1776394254755,-623.84,9.041e-05,2]
[420639501,1776394254765,-4887.41,9.041e-05,2]
[420639502,1776394254777,-500.0,9.041e-05,2]
[420639503,1776394254787,-500.0,9.041e-05,2]
[420639504,1776394254797,-500.0,9.041e-05,2]
[420639505,1776394254807,-312.91343239,9.041e-05,2]
[420639506,1776394254817,-1406.54,9.041e-05,2]
[420639507,1776394254828,-635.69,9.041e-05,2]
[420639508,1776394254838,-264.20318277,9.041e-05,2]
[420639509,1776394254851,-922.03681723,9.041e-05,2]
[420639510,1776394254860,-500.0,9.041e-05,2]
[420639511,1776394254870,-500.0,9.041e-05,2]
[420639512,1776394254880,-500.0,9.041e-05,2]
[420639513,1776394254890,-500.0,9.041e-05,2]
[420639514,1776394254899,-500.0,9.041e-05,2]
[420639515,1776394254908,-545.24,9.041e-05,2]
[420639516,1776394254918,-3682.29,9.041e-05,2]
[420639517,1776394254927,-1399.77,9.041e-05,2]
[420639518,1776394254936,-4179.88,9.041e-05,2]
[420639519,1776394254945,-2445.11,9.041e-05,2]
[420639520,1776394254955,-500.0,9.041e-05,2]
[420639521,1776394254965,-169.00342909,9.041e-05,2]
[420639522,1776394254974,-723.56,9.041e-05,2]
[420639523,1776394254984,-500.0,9.041e-05,2]
[420639524,1776394254993,-500.0,9.041e-05,2]
[420639525,1776394255003,-626.43,9.041e-05,2]
[420639526,1776394255012,-888.71,9.041e-05,2]
[420639527,1776394255022,-500.0,9.041e-05,2]
[420639528,1776394255031,-3063.73,9.041e-05,2]
[420639529,1776394255041,-797.06,9.041e-05,2]
[420639530,1776394255050,-780.91,9.041e-05,2]
[420639531,1776394255060,-1719.51,9.041e-05,2]
[420639532,1776394255069,-500.0,9.041e-05,2]
[420639533,1776394255078,-500.0,9.041e-05,2]
[420639534,1776394255088,-500.0,9.041e-05,2]
[420639535,1776394255097,-500.0,9.041e-05,2]
[420639536,1776394255107,-500.0,9.041e-05,2]
[420639537,1776394255116,-500.0,9.041e-05,2]
[420639538,1776394255125,-500.0,9.041e-05,2]
[420639539,1776394255135,-1384.22,9.041e-05,2]
[420639540,1776394255144,-807.43,9.041e-05,2]
[420639541,1776394255153,-700.81,9.041e-05,2]
[420639542,1776394255163,-500.0,9.041e-05,2]
[420639543,1776394255173,-2676.54,9.041e-05,2]
[420639544,1776394255183,-500.0,9.041e-05,2]
[420639545,1776394255193,-2670.78,9.041e-05,2]
[420639546,1776394255202,-1986.85,9.041e-05,2]
[420639547,1776394255211,-598.01,9.041e-05,2]
[420639548,1776394255221,-227.76810974,9.041e-05,2]
[420639549,1776394255230,-693.33,9.041e-05,2]
[420639550,1776394255239,-500.0,9.041e-05,2]
[420639551,1776394255249,-500.0,9.041e-05,2]
[420639552,1776394255259,-1545.23,9.041e-05,2]
[420639553,1776394255269,-270.37796832,9.041e-05,2]
[420639554,1776394255281,-440.87684538,9.041e-05,2]
[420639555,1776394255299,-366.0,9.041e-05,2]
[420639556,1776394271202,507.3,0.00024658,120]
[420639557,1776394297320,507.298,0.00024658,120]
[420639558,1776394407486,3129.15,0.00024658,120]
[420639560,1776394458566,500.0,8.767e-05,120]
[420639561,1776394458730,500.0,8.767e-05,120]
[420639562,1776394458899,500.0,8.767e-05,120]
[420639563,1776394459080,500.0,8.767e-05,120]
[420639564,1776394459272,500.0,8.767e-05,120]
[420639565,1776394459413,500.0,8.767e-05,120]
[420639566,1776394459579,500.0,8.767e-05,120]
[420639567,1776394459738,500.0,8.767e-05,120]
[420639568,1776394460317,500.0,8.767e-05,120]
[420639569,1776394460367,500.0,8.767e-05,120]
[420639570,1776394460410,500.0,8.767e-05,120]
[420639571,1776394460462,500.0,8.767e-05,120]
[420639572,1776394460732,500.0,8.767e-05,120]
[420639573,1776394460906,500.0,8.767e-05,120]
[420639574,1776394461084,500.0,8.767e-05,120]
[420639575,1776394461414,500.0,8.767e-05,120]
[420639576,1776394461579,500.0,8.767e-05,120]
[420639577,1776394462092,500.0,8.767e-05,120]
[420639578,1776394463003,450.9366182,8.767e-05,120]
[420639598,1776395292539,730.0,0.00024658,120]
[420639602,1776395419921,-400.67284709,5.851e-05,2]
[420639603,1776395419944,-500.0,6.159e-05,2]
[420639604,1776395419967,-500.0,6.467e-05,2]
[420639605,1776395419990,-514.0,6.575e-05,2]
[420639606,1776395420014,-250.95702181,6.575e-05,2]
[420639607,1776395420038,-892.65,6.575e-05,2]
[420639638,1776395431784,-500.0,6.79e-05,2]
[420639640,1776395431793,-569.22165646,7.133e-05,2]
[420639642,1776395431802,-300.0,7.798e-05,2]
[420639644,1776395431811,-300.0,7.798e-05,2]
[420639646,1776395431820,-300.0,7.798e-05,2]
[420639648,1776395431830,-300.0,7.798e-05,2]
[420639649,1776395431838,-192.86010584,7.798e-05,2]
[420639650,1776395431854,-1007.13989416,7.798e-05,2]
[420639651,1776395431863,-500.0,7.799e-05,2]
[420639652,1776395431873,-500.0,7.799e-05,2]
[420639653,1776395431882,-495.4576234,7.799e-05,2]
[420639654,1776395431892,-500.0,7.799e-05,2]
[420639655,1776395431901,-606.39883552,7.799e-05,2]
[420639656,1776395431911,-15957.42545755,7.8e-05,2]
[420639982,1776395438240,-971.03386347,7.8e-05,2]
[420639983,1776395438295,-31444.15641993,7.8e-05,2]
[420640012,1776395442919,-13036.09005994,7.8e-05,2]
[420640013,1776395442930,-5085.86615875,7.8e-05,2]
[420640014,1776395443027,-608.45055747,7.8e-05,2]
[420640015,1776395443039,-2900.0,7.8e-05,2]
[420640016,1776395443050,-7676.85178447,7.8e-05,2]
[420640033,1776395446076,-26904.58393724,7.8e-05,2]
[420640035,1776395446086,-7392.89952527,7.802e-05,2]
[420640037,1776395446096,-190.64955211,7.802e-05,2]
[420640039,1776395446106,-500.0,7.867e-05,2]
[420640041,1776395446116,-500.0,7.867e-05,2]
[420640043,1776395446126,-500.0,7.867e-05,2]
[420640045,1776395446135,-500.0,7.867e-05,2]
[420640047,1776395446144,-500.0,7.867e-05,2]
[420640049,1776395446154,-500.0,7.867e-05,2]
[420640051,1776395446162,-500.0,7.867e-05,2]
[420640053,1776395446172,-167.7270145,7.867e-05,2]
[420640055,1776395446182,-500.0,7.867e-05,2]
[420640057,1776395446191,-500.0,7.867e-05,2]
[420640059,1776395446201,-500.0,7.867e-05,2]
[420640060,1776395446211,-160.0,7.868e-05,2]
[420640063,1776395446223,-160.0,7.868e-05,2]
[420640065,1776395446234,-169.409324,7.898e-05,2]
[420640067,1776395446244,-630.06872099,8.085e-05,2]
[420640072,1776395493114,1000.0,3.6e-05,2]
[420640073,1776395493194,-68.67,3.6e-05,2]
[420640074,1776395493217,-714.12,6.24e-05,2]
[420640075,1776395493240,-509.0,6.24e-05,2]
[420640076,1776395499192,3600.0,0.00024,120]
[420640077,1776395515777,5146.85279649,0.00024,120]
[420640079,1776395586965,-152.0,7.652e-05,7]
[420640080,1776395587010,-152.0,8.495e-05,7]
[420640081,1776395779350,-500.0,6.159e-05,2]
[420640082,1776395779374,-508.0,6.159e-05,2]
[420640083,1776395779396,-571.3,6.24e-05,2]
[420640085,1776395933683,230.58388818,0.00017135,120]
[420640086,1776395934536,230.58388818,0.0001723,120]
[420640090,1776396084514,-457.04,6.24e-05,2]
[420640091,1776396084536,-509.0,6.24e-05,2]
[420640096,1776396429176,-365.63,6.24e-05,2]
[420640097,1776396429198,-509.0,6.24e-05,2]
[420640098,1776396429524,509.0,6.24e-05,2]
[420640100,1776396607192,4702.87854335,0.00024657,120]
[420640244,1776396638648,-151.0,7.452e-05,2]
[420640245,1776396638658,-160.0,7.642e-05,3]
[420640246,1776396638668,-3710.9679126,7.794e-05,2]
[420640247,1776396638679,-160.0,7.799e-05,4]
[420640248,1776396638690,-160.0,7.864e-05,2]
[420640249,1776396638700,-160.0,7.956e-05,5]
[420640250,1776396638711,-160.0,8.112e-05,6]
[420640251,1776396638720,-1200.0,8.151e-05,2]
[420640252,1776396638730,-219.81051898,8.151e-05,2]
[420640253,1776396638743,-300.0,8.152e-05,2]
[420640254,1776396638752,-300.0,8.152e-05,2]
[420640255,1776396638762,-300.0,8.152e-05,2]
[420640256,1776396638772,-50000.0,8.153e-05,2]
[420640257,1776396638781,-6408.82720646,8.155e-05,2]
[420640258,1776396638790,-300.0,8.16e-05,2]
[420640259,1776396638799,-300.0,8.16e-05,2]
[420640260,1776396638809,-300.0,8.16e-05,2]
[420640261,1776396638819,-300.0,8.16e-05,2]
[420640262,1776396638833,-300.0,8.16e-05,2]
[420640263,1776396638843,-300.0,8.16e-05,2]
[420640264,1776396638852,-300.0,8.16e-05,2]
[420640265,1776396638862,-300.0,8.16e-05,2]
[420640266,1776396638870,-300.0,8.16e-05,2]
[420640267,1776396638881,-300.0,8.16e-05,2]
[420640268,1776396638891,-300.0,8.16e-05,2]
[420640269,1776396638902,-300.0,8.16e-05,2]
[420640270,1776396638911,-300.0,8.16e-05,2]
[420640271,1776396638922,-300.0,8.16e-05,2]
[420640272,1776396638932,-300.0,8.16e-05,2]
[420640273,1776396638942,-500.0,8.16e-05,2]
[420640274,1776396638953,-1833.4623,8.219e-05,2]
[420640275,1776396638962,-514.38474785,8.219e-05,2]
[420640276,1776396638972,-598.84495814,8.219e-05,2]
[420640277,1776396638981,-506.39254823,8.219e-05,2]
[420640278,1776396638991,-518.5444462,8.219e-05,2]
[420640279,1776396639001,-510.14473701,8.219e-05,2]
[420640280,1776396639011,-507.99241502,8.219e-05,2]
[420640281,1776396639022,-500.0,8.219e-05,2]
[420640282,1776396639032,-510.16608344,8.219e-05,2]
[420640283,1776396639043,-507.34250813,8.219e-05,2]
[420640284,1776396639053,-501.40913437,8.219e-05,2]
[420640285,1776396639063,-514.77012465,8.219e-05,2]
[420640286,1776396639072,-510.85638,8.219e-05,2]
[420640287,1776396639083,-507.45916533,8.219e-05,2]
[420640288,1776396639092,-500.0,8.219e-05,2]
[420640289,1776396639102,-510.00765416,8.219e-05,2]
[420640290,1776396639112,-500.0,8.219e-05,2]
[420640291,1776396639123,-508.1313774,8.219e-05,2]
[420640292,1776396639133,-290.52836421,8.219e-05,2]
[420640293,1776396639143,-505.33730278,8.219e-05,2]
[420640294,1776396639153,-500.0,8.219e-05,2]
[420640295,1776396639164,-500.0,8.219e-05,2]
[420640296,1776396639174,-500.0,8.219e-05,2]
[420640297,1776396639186,-364.68388141,8.219e-05,2]
[420640298,1776396639196,-500.0,8.219e-05,2]
[420640299,1776396639207,-556.74,8.219e-05,2]
[420640300,1776396639217,-507.49929262,8.219e-05,2]
[420640301,1776396639227,-438.27809248,8.219e-05,2]
[420640302,1776396639236,-500.0,8.219e-05,2]
[420640303,1776396639246,-500.0,8.219e-05,2]
[420640304,1776396639256,-500.0,8.219e-05,2]
[420640305,1776396639267,-460.9947363,8.219e-05,2]
[420640306,1776396639278,-500.0,8.219e-05,2]
[420640307,1776396639287,-500.0,8.219e-05,2]
[420640308,1776396639298,-199.85884295,8.219e-05,2]
[420640309,1776396639307,-500.0,8.219e-05,2]
[420640310,1776396639318,-500.31269294,8.219e-05,2]
[420640311,1776396639327,-501.31313708,8.219e-05,2]
[420640312,1776396639340,-500.65473242,8.219e-05,2]
[420640313,1776396639351,-500.0,8.219e-05,2]
[420640314,1776396639362,-506.38787138,8.219e-05,2]
[420640315,1776396639371,-500.0,8.219e-05,2]
[420640316,1776396639380,-500.0,8.219e-05,2]
[420640317,1776396639391,-153.60858736,8.219e-05,2]
[420640318,1776396639402,-500.0,8.219e-05,2]
[420640319,1776396639411,-601.5985867,8.219e-05,2]
[420640320,1776396639422,-500.0,8.219e-05,2]
[420640321,1776396639432,-537.05,8.219e-05,2]
[420640322,1776396639441,-500.0,8.219e-05,2]
[420640323,1776396639450,-1505.434382,8.219e-05,2]
[420640324,1776396639462,-500.0,8.219e-05,2]
[420640325,1776396639471,-500.0,8.219e-05,2]
[420640326,1776396639481,-500.0,8.219e-05,2]
[420640327,1776396639491,-500.0,8.219e-05,2]
[420640328,1776396639500,-500.0,8.219e-05,2]
[420640329,1776396639510,-500.0,8.219e-05,2]
[420640330,1776396639519,-500.0,8.219e-05,2]
[420640331,1776396639529,-1695.89,8.219e-05,2]
[420640332,1776396639539,-500.0,8.219e-05,2]
[420640333,1776396639548,-521.1,8.219e-05,2]
[420640334,1776396639559,-498.60667806,8.219e-05,2]
[420640335,1776396639569,-500.0,8.219e-05,2]
[420640336,1776396639580,-561.76,8.219e-05,2]
[420640337,1776396639589,-1241.05,8.219e-05,2]
[420640338,1776396639598,-500.0,8.219e-05,2]
[420640339,1776396639607,-500.0,8.219e-05,2]
[420640340,1776396639617,-1068.68,8.219e-05,2]
[420640341,1776396639627,-500.0,8.219e-05,2]
[420640342,1776396639636,-500.0,8.219e-05,2]
[420640343,1776396639646,-500.0,8.219e-05,2]
[420640344,1776396639656,-500.0,8.219e-05,2]
[420640345,1776396639665,-227.1632342,8.219e-05,2]
[420640346,1776396639674,-500.0,8.219e-05,2]
[420640347,1776396639684,-500.0,8.219e-05,2]
[420640348,1776396639693,-500.0,8.219e-05,2]
[420640349,1776396639703,-500.0,8.219e-05,2]
[420640350,1776396639714,-842.0,8.219e-05,2]
[420640351,1776396639723,-580.91932515,8.219e-05,2]
[420640352,1776396639733,-500.0,8.219e-05,2]
[420640353,1776396639743,-235.50312841,8.219e-05,2]
[420640354,1776396639753,-170.23838697,8.219e-05,2]
[420640355,1776396639763,-605.77802195,8.219e-05,2]
[420640356,1776396639773,-506.42573657,8.219e-05,2]
[420640357,1776396639783,-500.0,8.219e-05,2]
[420640358,1776396639795,-745.82,8.219e-05,2]
[420640359,1776396639805,-500.0,8.219e-05,2]
[420640360,1776396639815,-500.0,8.219e-05,2]
[420640362,1776396639825,-500.0,8.219e-05,2]
[420640363,1776396639834,-500.0,8.219e-05,2]
[420640364,1776396639845,-500.0,8.219e-05,2]
[420640365,1776396639855,-824.19,8.219e-05,2]
[420640366,1776396639864,-1904.65,8.219e-05,2]
[420640367,1776396639874,-500.0,8.219e-05,2]
[420640368,1776396639883,-824.93,8.219e-05,2]
[420640369,1776396639893,-519.43394034,8.219e-05,2]
[420640370,1776396639903,-500.0,8.219e-05,2]
[420640371,1776396639913,-503.96209183,8.219e-05,2]
[420640372,1776396639924,-500.0,8.219e-05,2]
[420640373,1776396639934,-500.0,8.219e-05,2]
[420640374,1776396639944,-504.00722284,8.219e-05,2]
[420640375,1776396639954,-500.0,8.219e-05,2]
[420640376,1776396639964,-500.0,8.219e-05,2]
[420640377,1776396639974,-4072.85,8.219e-05,2]
[420640378,1776396639983,-500.0,8.219e-05,2]
[420640379,1776396639992,-500.0,8.219e-05,2]